[Event "Torneo Nuevo Centro. Jornada 8"]
[Site "Chess.com"]
[Date "2020.08.07"]
[Round "7"]
[White "Ainsa Jimenez, Lucas"]
[Black "Casado Andreu, David"]
[Result "0-1"]
[WhiteElo "1069"]
[BlackElo "1755"]
[TimeControl "180+2"]
[EndTime "11:47:16 PDT"]
[Termination "Victoria de dave6635 por tiempo"]

1. e4 {[%clk 0:03:01.4]} 1... e5 {[%clk 0:03:00.9]} 2. Nf3 {[%clk 0:03:02.2]}
2... Nc6 {[%clk 0:03:02.2]} 3. Bc4 {[%clk 0:03:03.1]} 3... Nf6 {[%clk
0:03:02.9]} 4. Ng5 {[%clk 0:03:04]} 4... d5 {[%clk 0:03:04]} 5. Nxf7 {[%clk
0:03:04.8]} 5... Kxf7 {[%clk 0:03:03.1]} 6. exd5 {[%clk 0:03:05.2]} 6... Na5
{[%clk 0:03:00.9]} 7. d3 {[%clk 0:02:55.1]} 7... Nxc4 {[%clk 0:03:01]} 8. dxc4
{[%clk 0:02:55.3]} 8... Bc5 {[%clk 0:03:02.9]} 9. O-O {[%clk 0:02:55.4]} 9...
Rf8 {[%clk 0:03:03]} 10. Nc3 {[%clk 0:02:53.7]} 10... Kg8 {[%clk 0:02:59.5]} 11.
Na4 {[%clk 0:02:52.4]} 11... Bb6 {[%clk 0:02:55]} 12. Nxb6 {[%clk 0:02:50.4]}
12... cxb6 {[%clk 0:02:53.6]} 13. Re1 {[%clk 0:02:49.1]} 13... Bg4 {[%clk
0:02:52.5]} 14. f3 {[%clk 0:02:45.5]} 14... Bd7 {[%clk 0:02:50.3]} 15. Rxe5
{[%clk 0:02:44.2]} 15... Re8 {[%clk 0:02:51.4]} 16. Rxe8+ {[%clk 0:02:43.4]}
16... Qxe8 {[%clk 0:02:53.3]} 17. b3 {[%clk 0:02:33.9]} 17... Qg6 {[%clk
0:02:52.5]} 18. Qe1 {[%clk 0:02:01.2]} 18... Re8 {[%clk 0:02:50.8]} 19. Qg3
{[%clk 0:01:44.7]} 19... Qxc2 {[%clk 0:02:46.4]} 20. Bh6 {[%clk 0:01:26.8]}
20... Qg6 {[%clk 0:02:19.7]} 21. Bf4 {[%clk 0:01:07.6]} 21... Nh5 {[%clk
0:02:16.3]} 22. Qh4 {[%clk 0:00:48.5]} 22... Nxf4 {[%clk 0:01:53]} 23. Qxf4
{[%clk 0:00:47.2]} 23... h6 {[%clk 0:01:53.2]} 24. Qc7 {[%clk 0:00:38.4]} 24...
Bh3 {[%clk 0:01:49.2]} 0

[Event "Torneo Nuevo Centro. Jornada 8"]
[Site "Chess.com"]
[Date "2020.08.07"]
[Round "7"]
[White "Conejero Martínez, Víctor"]
[Black "Perrot, Fabien "]
[Result "1-0"]
[WhiteElo "1372"]
[BlackElo "1015"]
[TimeControl "180+2"]
[EndTime "11:49:02 PDT"]
[Termination "Victoria de Camelocota20 por tiempo"]

1. d4 {[%clk 0:03:01.9]} 1... d5 {[%clk 0:02:54]} 2. c4 {[%clk 0:03:02.3]} 2...
c6 {[%clk 0:02:52.6]} 3. Nc3 {[%clk 0:03:02.5]} 3... Nf6 {[%clk 0:02:51.9]} 4.
Nf3 {[%clk 0:03:00.6]} 4... Bg4 {[%clk 0:02:50.7]} 5. Bg5 {[%clk 0:02:58.1]}
5... e6 {[%clk 0:02:47.8]} 6. h3 {[%clk 0:02:50.3]} 6... Bh5 {[%clk 0:02:43.5]}
7. g4 {[%clk 0:02:50.7]} 7... Bg6 {[%clk 0:02:44.5]} 8. Ne5 {[%clk 0:02:51.6]}
8... Nbd7 {[%clk 0:02:38.5]} 9. Nxg6 {[%clk 0:02:51.8]} 9... hxg6 {[%clk
0:02:40]} 10. e3 {[%clk 0:02:49.4]} 10... Be7 {[%clk 0:02:28.4]} 11. Qc2 {[%clk
0:02:41.9]} 11... Nxg4 {[%clk 0:02:16.8]} 12. Bxe7 {[%clk 0:02:39.7]} 12... Qxe7
{[%clk 0:02:13.9]} 13. O-O-O {[%clk 0:02:25]} 13... Qf6 {[%clk 0:02:06.2]} 14.
Bd3 {[%clk 0:02:20.2]} 14... Nxf2 {[%clk 0:02:02]} 15. Rhf1 {[%clk 0:02:18.2]}
15... Nxd3+ {[%clk 0:01:56.7]} 16. Qxd3 {[%clk 0:02:15]} 16... Qe7 {[%clk
0:01:35.8]} 17. e4 {[%clk 0:02:12]} 17... dxc4 {[%clk 0:01:13]} 18. Qxc4 {[%clk
0:02:12.2]} 18... Rxh3 {[%clk 0:01:07.1]} 19. Rh1 {[%clk 0:02:12.8]} 19... Rxh1
{[%clk 0:00:59.2]} 20. Rxh1 {[%clk 0:02:12.8]} 20... O-O-O {[%clk 0:00:50.7]}
21. Nb5 {[%clk 0:02:10.3]} 21... Qg5+ {[%clk 0:00:38.8]} 22. Kb1 {[%clk
0:02:08.4]} 22... Qxb5 {[%clk 0:00:38.9]} 23. Qc3 {[%clk 0:02:00.4]} 23... Nb6
{[%clk 0:00:23.9]} 24. d5 {[%clk 0:02:00.8]} 24... exd5 {[%clk 0:00:17.6]} 25.
exd5 {[%clk 0:01:54.3]} 25... Nxd5 {[%clk 0:00:16]} 26. Qxg7 {[%clk 0:01:54.4]}
26... Rd7 {[%clk 0:00:08.8]} 27. Rh8+ {[%clk 0:01:54.4]} 27... Kc7 {[%clk
0:00:09.9]} 28. Qe5+ {[%clk 0:01:54.3]} 28... Kb6 {[%clk 0:00:08.8]} 29. Qd4+
{[%clk 0:01:55.2]} 29... Qc5 {[%clk 0:00:08.8]} 30. Qa4 {[%clk 0:01:47.2]} 30...
Nc3+ {[%clk 0:00:06.9]} 31. bxc3 {[%clk 0:01:45.7]} 31... Rd1+ {[%clk
0:00:08.1]} 32. Qxd1 {[%clk 0:01:44.6]} 32... Qf5+ {[%clk 0:00:08]} 33. Qc2
{[%clk 0:01:39.4]} 33... Qxc2+ {[%clk 0:00:08.4]} 34. Kxc2 {[%clk 0:01:39.7]}
34... Kc5 {[%clk 0:00:09.3]} 35. Rh7 {[%clk 0:01:40]} 35... g5 {[%clk
0:00:08.7]} 36. Rxf7 {[%clk 0:01:40.7]} 36... Kd5 {[%clk 0:00:09.5]} 37. Rg7
{[%clk 0:01:41.4]} 37... Kc4 {[%clk 0:00:09.3]} 38. Rxg5 {[%clk 0:01:41.9]}
38... b5 {[%clk 0:00:11.2]} 39. Rg7 {[%clk 0:01:41.7]} 39... a5 {[%clk
0:00:12.4]} 40. Rg6 {[%clk 0:01:41.1]} 40... c5 {[%clk 0:00:13.4]} 41. Rg4+
{[%clk 0:01:41.3]} 41... Kd5 {[%clk 0:00:14.4]} 42. Rg5+ {[%clk 0:01:42]} 42...
Kc4 {[%clk 0:00:15.4]} 43. Rg4+ {[%clk 0:01:42.7]} 43... Kd5 {[%clk 0:00:16.6]}
44. Kd3 {[%clk 0:01:43.8]} 44... b4 {[%clk 0:00:07.8]} 45. Rg5+ {[%clk
0:01:41.8]} 45... Kc6 {[%clk 0:00:08.3]} 46. cxb4 {[%clk 0:01:41.8]} 46... axb4
{[%clk 0:00:08]} 47. Kc4 {[%clk 0:01:41.5]} 47... Kb6 {[%clk 0:00:08.4]} 48.
Rxc5 {[%clk 0:01:42.2]} 48... Ka6 {[%clk 0:00:07.1]} 49. Kxb4 {[%clk 0:01:42.9]}
1

[Event "Torneo Nuevo Centro. Jornada 8"]
[Site "Chess.com"]
[Date "2020.08.07"]
[Round "7"]
[White "Pardo Ruiz, Carlos"]
[Black "Aymerich Rosell, Pablo"]
[Result "0-1"]
[WhiteElo "1685"]
[BlackElo "1958"]
[TimeControl "180+2"]
[EndTime "11:49:43 PDT"]
[Termination "Victoria de jasikevic por jaque mate"]

1. e4 {[%clk 0:03:01.9]} 1... c5 {[%clk 0:02:56]} 2. Nf3 {[%clk 0:02:59.9]} 2...
Nc6 {[%clk 0:02:55.6]} 3. d4 {[%clk 0:02:58.7]} 3... cxd4 {[%clk 0:02:56.2]} 4.
Nxd4 {[%clk 0:03:00.6]} 4... Nf6 {[%clk 0:02:56.5]} 5. Nc3 {[%clk 0:03:00.4]}
5... e5 {[%clk 0:02:56.9]} 6. Ndb5 {[%clk 0:03:00.4]} 6... d6 {[%clk 0:02:56.5]}
7. Nd5 {[%clk 0:03:01.2]} 7... Nxd5 {[%clk 0:02:50.4]} 8. exd5 {[%clk
0:03:03.1]} 8... Ne7 {[%clk 0:02:51]} 9. c4 {[%clk 0:03:04.5]} 9... Ng6 {[%clk
0:02:51.2]} 10. Be2 {[%clk 0:03:02.7]} 10... Be7 {[%clk 0:02:51.8]} 11. O-O
{[%clk 0:03:00.4]} 11... O-O {[%clk 0:02:51.2]} 12. Kh1 {[%clk 0:02:59.7]} 12...
f5 {[%clk 0:02:50.6]} 13. Nc3 {[%clk 0:02:57.3]} 13... Bg5 {[%clk 0:02:45.3]}
14. Bxg5 {[%clk 0:02:55.3]} 14... Qxg5 {[%clk 0:02:45.7]} 15. Qc1 {[%clk
0:02:54.5]} 15... Nf4 {[%clk 0:02:46.2]} 16. g3 {[%clk 0:02:46.1]} 16... Nh3
{[%clk 0:02:34.1]} 17. Qxg5 {[%clk 0:02:45.7]} 17... Nxg5 {[%clk 0:02:34.8]} 18.
f4 {[%clk 0:02:47.1]} 18... exf4 {[%clk 0:02:33]} 19. Rxf4 {[%clk 0:02:49]}
19... Nf7 {[%clk 0:02:28.8]} 20. b3 {[%clk 0:02:41.9]} 20... Ne5 {[%clk
0:02:29.3]} 21. Nb5 {[%clk 0:02:37.6]} 21... Rf6 {[%clk 0:02:26]} 22. Re1 {[%clk
0:02:26.9]} 22... a6 {[%clk 0:02:25.7]} 23. Nd4 {[%clk 0:02:25.5]} 23... Bd7
{[%clk 0:02:23.4]} 24. Bf1 {[%clk 0:02:20.5]} 24... g5 {[%clk 0:02:20.5]} 25.
Rf2 {[%clk 0:02:15.3]} 25... Raf8 {[%clk 0:02:19.3]} 26. Nf3 {[%clk 0:02:06.9]}
26... Ng4 {[%clk 0:02:17.4]} 27. Rfe2 {[%clk 0:02:03.6]} 27... f4 {[%clk
0:02:15.4]} 28. Re7 {[%clk 0:01:56.9]} 28... Bc8 {[%clk 0:02:12.7]} 29. gxf4
{[%clk 0:01:39.5]} 29... Rxf4 {[%clk 0:02:09]} 30. Nd2 {[%clk 0:01:39.1]} 30...
Rf2 {[%clk 0:02:04.9]} 31. Rd1 {[%clk 0:01:26.5]} 31... Rxh2+ {[%clk 0:01:57]}
32. Kg1 {[%clk 0:01:27.2]} 32... Rhf2 {[%clk 0:01:42.6]} 33. Bd3 {[%clk
0:01:19]} 33... Nh2 {[%clk 0:01:37]} 34. Bxh7+ {[%clk 0:01:13.4]} 34... Kh8
{[%clk 0:01:37.9]} 35. Bd3 {[%clk 0:01:13]} 35... Rxd2 {[%clk 0:01:35.7]} 36.
Rxd2 {[%clk 0:01:05.5]} 36... Nf3+ {[%clk 0:01:35.7]} 37. Kg2 {[%clk 0:01:04.9]}
37... Nxd2 {[%clk 0:01:34.4]} 38. Rh7+ {[%clk 0:01:05.6]} 38... Kg8 {[%clk
0:01:34.8]} 39. Rh5 {[%clk 0:01:02.4]} 39... Nf3 {[%clk 0:01:28.5]} 40. Be4
{[%clk 0:00:56.1]} 40... Bg4 {[%clk 0:01:27.4]} 41. Rh1 {[%clk 0:00:51.1]} 41...
Nh4+ {[%clk 0:01:24.8]} 42. Kg3 {[%clk 0:00:49.1]} 42... Bf3 {[%clk 0:01:18.7]}
43. Bxf3 {[%clk 0:00:47.7]} 43... Nxf3 {[%clk 0:01:13.3]} 44. Rf1 {[%clk
0:00:45]} 44... Ne5 {[%clk 0:01:10.9]} 45. Re1 {[%clk 0:00:43]} 45... Rf3+
{[%clk 0:01:10.5]} 46. Kg2 {[%clk 0:00:43.5]} 46... g4 {[%clk 0:01:10.4]} 47.
Re4 {[%clk 0:00:41.9]} 47... Rc3 {[%clk 0:01:08.6]} 48. Rf4 {[%clk 0:00:36.8]}
48... Kg7 {[%clk 0:01:06.5]} 49. Rf2 {[%clk 0:00:35.6]} 49... Kg6 {[%clk
0:01:05.2]} 50. Re2 {[%clk 0:00:34.5]} 50... Kg5 {[%clk 0:01:05.5]} 51. Rf2
{[%clk 0:00:34.7]} 51... Rf3 {[%clk 0:01:05.2]} 52. Re2 {[%clk 0:00:34.7]} 52...
Kf4 {[%clk 0:01:04.7]} 53. Re1 {[%clk 0:00:30.1]} 53... Rg3+ {[%clk 0:01:04.9]}
54. Kh2 {[%clk 0:00:29.5]} 54... Nf3+ {[%clk 0:01:04.9]} 55. Kh1 {[%clk
0:00:30.4]} 55... Nxe1 {[%clk 0:01:05.3]} 56. b4 {[%clk 0:00:31.9]} 56... Nf3
{[%clk 0:01:06.1]} 57. c5 {[%clk 0:00:30]} 57... Rg1# {[%clk 0:01:06.6]} 0

[Event "Torneo Nuevo Centro. Jornada 8"]
[Site "Chess.com"]
[Date "2020.08.07"]
[Round "7"]
[White "Bascuñana Sánchez, Pablo"]
[Black "Marques Montolio, Luis"]
[Result "1-0"]
[WhiteElo "1659"]
[BlackElo "1422"]
[TimeControl "180+2"]
[EndTime "11:49:44 PDT"]
[Termination "Victoria de Pabasan2010 por abandono"]

1. e4 {[%clk 0:03:01.9]} 1... c6 {[%clk 0:02:58.1]} 2. d4 {[%clk 0:03:00.1]}
2... d5 {[%clk 0:03:00]} 3. exd5 {[%clk 0:03:00.3]} 3... cxd5 {[%clk 0:03:00.8]}
4. Bd3 {[%clk 0:03:01.8]} 4... Nc6 {[%clk 0:03:01.4]} 5. c3 {[%clk 0:03:01.8]}
5... Nf6 {[%clk 0:03:02]} 6. h3 {[%clk 0:03:03.4]} 6... e6 {[%clk 0:02:53.5]} 7.
Nf3 {[%clk 0:03:03.3]} 7... Bd7 {[%clk 0:02:50.7]} 8. Bf4 {[%clk 0:03:03]} 8...
a6 {[%clk 0:02:49.1]} 9. O-O {[%clk 0:03:02.1]} 9... Be7 {[%clk 0:02:46.6]} 10.
Nbd2 {[%clk 0:02:59.6]} 10... b5 {[%clk 0:02:42.2]} 11. Re1 {[%clk 0:02:49.2]}
11... Na5 {[%clk 0:02:39.7]} 12. Ne5 {[%clk 0:02:44.9]} 12... Nc4 {[%clk
0:02:38]} 13. Ndxc4 {[%clk 0:02:36.4]} 13... dxc4 {[%clk 0:02:28]} 14. Bc2
{[%clk 0:02:29.9]} 14... Nd5 {[%clk 0:02:28.6]} 15. Bg3 {[%clk 0:02:28.8]} 15...
Qc8 {[%clk 0:02:16.5]} 16. Qf3 {[%clk 0:02:27.3]} 16... O-O {[%clk 0:02:10.3]}
17. Re4 {[%clk 0:02:09.6]} 17... Bc6 {[%clk 0:01:58.8]} 18. Nxc6 {[%clk
0:02:08.1]} 18... Qxc6 {[%clk 0:01:59.5]} 19. Rg4 {[%clk 0:01:38.1]} 19... Rac8
{[%clk 0:01:51.9]} 20. Qe4 {[%clk 0:01:30.4]} 20... g6 {[%clk 0:01:43.8]} 21.
Qf3 {[%clk 0:01:25]} 21... Nf6 {[%clk 0:01:38.6]} 22. Qxc6 {[%clk 0:01:20.1]}
22... Rxc6 {[%clk 0:01:37.7]} 23. Rf4 {[%clk 0:01:18.7]} 23... Re8 {[%clk
0:01:34.5]} 24. Bh4 {[%clk 0:01:16.4]} 24... Nd5 {[%clk 0:01:33.2]} 25. Be4
{[%clk 0:01:02.4]} 25... g5 {[%clk 0:01:18.4]} 26. Bxd5 {[%clk 0:00:55]} 26...
exd5 {[%clk 0:01:16.6]} 27. Rg4 {[%clk 0:00:50]} 27... f6 {[%clk 0:01:14.3]} 28.
Re1 {[%clk 0:00:47]} 28... Rc7 {[%clk 0:01:10.3]} 29. Bg3 {[%clk 0:00:47.5]}
29... Rd7 {[%clk 0:01:09.1]} 30. h4 {[%clk 0:00:45.3]} 30... h5 {[%clk
0:01:08.7]} 31. hxg5 {[%clk 0:00:38]} 31... hxg4 {[%clk 0:01:08.2]} 32. gxf6
{[%clk 0:00:38.4]} 32... Kf7 {[%clk 0:01:03.4]} 33. fxe7 {[%clk 0:00:38.9]}
33... Rdxe7 {[%clk 0:01:03.7]} 34. Be5 {[%clk 0:00:39.1]} 34... Kg6 {[%clk
0:01:00.1]} 35. Re3 {[%clk 0:00:38.8]} 35... Kf5 {[%clk 0:01:00.1]} 36. f3
{[%clk 0:00:35.3]} 36... gxf3 {[%clk 0:00:58.7]} 37. Rxf3+ {[%clk 0:00:35.5]}
37... Kg4 {[%clk 0:00:58.5]} 38. Kf2 {[%clk 0:00:31.3]} 38... Rh7 {[%clk
0:00:49.3]} 39. Rg3+ {[%clk 0:00:28.8]} 39... Kf5 {[%clk 0:00:48]} 40. Rf3+
{[%clk 0:00:29.6]} 40... Ke6 {[%clk 0:00:47.5]} 41. Rf6+ {[%clk 0:00:28.9]}
41... Kd7 {[%clk 0:00:47.8]} 42. Rxa6 {[%clk 0:00:25.6]} 42... Rh1 {[%clk
0:00:46.9]} 43. Rd6+ {[%clk 0:00:25.1]} 43... Ke7 {[%clk 0:00:46.1]} 44. Rxd5
{[%clk 0:00:24]} 44... Ra1 {[%clk 0:00:39.9]} 45. a3 {[%clk 0:00:23]} 45... Rf8+
{[%clk 0:00:37.7]} 46. Kg3 {[%clk 0:00:22.2]} 46... Raf1 {[%clk 0:00:36.1]} 47.
Bd6+ {[%clk 0:00:22.3]} 47... Ke8 {[%clk 0:00:35.8]} 48. Bxf8 {[%clk 0:00:22.6]}
48... Kxf8 {[%clk 0:00:37.7]} 49. Rxb5 {[%clk 0:00:22.5]} 1

[Event "Torneo Nuevo Centro. Jornada 8"]
[Site "Chess.com"]
[Date "2020.08.07"]
[Round "7"]
[White "Bercaru, Vlad Ionut"]
[Black "Gukasov, Artem"]
[Result "1-0"]
[WhiteElo "1838"]
[BlackElo "1552"]
[TimeControl "180+2"]
[EndTime "11:50:05 PDT"]
[Termination "Victoria de Rata29 por tiempo"]

1. d4 {[%clk 0:03:01.9]} 1... Nf6 {[%clk 0:03:00.6]} 2. Bg5 {[%clk 0:03:01.4]}
2... g6 {[%clk 0:03:01.7]} 3. Bxf6 {[%clk 0:03:02]} 3... exf6 {[%clk 0:03:02]}
4. c4 {[%clk 0:03:02.9]} 4... Bg7 {[%clk 0:03:01.8]} 5. Nc3 {[%clk 0:03:03.2]}
5... O-O {[%clk 0:03:01]} 6. e3 {[%clk 0:03:04.1]} 6... f5 {[%clk 0:03:01.5]} 7.
Nge2 {[%clk 0:03:04.8]} 7... c6 {[%clk 0:03:00.3]} 8. g3 {[%clk 0:03:04.6]} 8...
d5 {[%clk 0:03:01]} 9. cxd5 {[%clk 0:03:04.1]} 9... cxd5 {[%clk 0:03:02.9]} 10.
Bg2 {[%clk 0:03:04.9]} 10... Be6 {[%clk 0:02:59.6]} 11. Nf4 {[%clk 0:03:01.7]}
11... Na6 {[%clk 0:02:43.6]} 12. Nfxd5 {[%clk 0:02:58.7]} 12... Rb8 {[%clk
0:02:42]} 13. O-O {[%clk 0:02:53.9]} 13... Nc7 {[%clk 0:02:28.5]} 14. Nxc7
{[%clk 0:02:46.8]} 14... Qxc7 {[%clk 0:02:30.4]} 15. Rc1 {[%clk 0:02:45.7]}
15... Qb6 {[%clk 0:02:29.6]} 16. b3 {[%clk 0:02:40.1]} 16... Rbc8 {[%clk
0:02:28.2]} 17. Na4 {[%clk 0:02:37]} 17... Qa6 {[%clk 0:02:14.3]} 18. Rxc8
{[%clk 0:02:28]} 18... Rxc8 {[%clk 0:02:14.4]} 19. Nc5 {[%clk 0:02:27.5]} 19...
Qxa2 {[%clk 0:02:09.2]} 20. Bxb7 {[%clk 0:02:27.5]} 20... Rc7 {[%clk 0:02:09]}
21. Nxe6 {[%clk 0:02:17.8]} 21... fxe6 {[%clk 0:02:08.2]} 22. Bg2 {[%clk
0:02:11.7]} 22... Rd7 {[%clk 0:02:00.9]} 23. Qd3 {[%clk 0:02:03.7]} 23... Qa5
{[%clk 0:01:57.4]} 24. Qc4 {[%clk 0:02:01.2]} 24... Qb6 {[%clk 0:01:38.8]} 25.
Rc1 {[%clk 0:01:53.9]} 25... Rd6 {[%clk 0:01:19.5]} 26. Qc8+ {[%clk 0:01:40.9]}
26... Kf7 {[%clk 0:01:18.9]} 27. Qc7+ {[%clk 0:01:31.6]} 27... Kf6 {[%clk
0:01:14.5]} 28. Qc3 {[%clk 0:01:18.6]} 28... g5 {[%clk 0:01:13.3]} 29. b4 {[%clk
0:01:05.1]} 29... Kg6 {[%clk 0:01:04.7]} 30. Qc5 {[%clk 0:01:04.3]} 30... Bf8
{[%clk 0:00:59.1]} 31. Ra1 {[%clk 0:00:34.9]} 31... Qxc5 {[%clk 0:00:28.8]} 32.
bxc5 {[%clk 0:00:34.1]} 32... Rd7 {[%clk 0:00:18.2]} 33. Ra6 {[%clk 0:00:33]}
33... Kf6 {[%clk 0:00:16.2]} 34. c6 {[%clk 0:00:28.6]} 34... Rc7 {[%clk
0:00:17]} 35. Kf1 {[%clk 0:00:25.7]} 35... h5 {[%clk 0:00:15.6]} 36. Ke2 {[%clk
0:00:25.7]} 36... Bd6 {[%clk 0:00:15.1]} 37. h3 {[%clk 0:00:22]} 37... g4 {[%clk
0:00:15.7]} 38. h4 {[%clk 0:00:22.2]} 38... e5 {[%clk 0:00:15.8]} 39. dxe5+
{[%clk 0:00:22]} 39... Kxe5 {[%clk 0:00:17.7]} 40. Kd3 {[%clk 0:00:22.5]} 40...
Bc5 {[%clk 0:00:18.5]} 41. Bf1 {[%clk 0:00:22.1]} 41... Bb6 {[%clk 0:00:19.2]}
42. Bg2 {[%clk 0:00:20.6]} 1

[Event "Torneo Nuevo Centro. Jornada 8"]
[Site "Chess.com"]
[Date "2020.08.07"]
[Round "7"]
[White "Luque Saiz, Andrés"]
[Black "Montesinos Diaz, Luis"]
[Result "1-0"]
[WhiteElo "2031"]
[BlackElo "1870"]
[TimeControl "180+2"]
[EndTime "11:50:10 PDT"]
[Termination "Victoria de Chuch1n por abandono"]

1. d4 {[%clk 0:03:01.9]} 1... d5 {[%clk 0:02:50.2]} 2. c4 {[%clk 0:03:02.7]}
2... dxc4 {[%clk 0:02:51.1]} 3. Nc3 {[%clk 0:02:59.3]} 3... a6 {[%clk 0:02:49]}
4. a4 {[%clk 0:02:54.8]} 4... Nc6 {[%clk 0:02:34.1]} 5. e3 {[%clk 0:02:50.4]}
5... Na5 {[%clk 0:02:30.2]} 6. Nf3 {[%clk 0:02:43]} 6... Nf6 {[%clk 0:02:24.7]}
7. Ne5 {[%clk 0:02:40]} 7... Be6 {[%clk 0:02:17.2]} 8. Ra2 {[%clk 0:02:04.6]}
8... Nd5 {[%clk 0:02:03.6]} 9. e4 {[%clk 0:01:26.3]} 9... Nxc3 {[%clk
0:02:00.9]} 10. bxc3 {[%clk 0:01:26.9]} 10... c6 {[%clk 0:01:52.4]} 11. Ba3
{[%clk 0:01:21.2]} 11... g6 {[%clk 0:01:48.9]} 12. Nf3 {[%clk 0:01:14.4]} 12...
Bg7 {[%clk 0:01:48.8]} 13. Ng5 {[%clk 0:01:14.1]} 13... Bd7 {[%clk 0:01:46.5]}
14. h4 {[%clk 0:01:08.9]} 14... h6 {[%clk 0:01:45.7]} 15. Nf3 {[%clk 0:00:58.4]}
15... O-O {[%clk 0:01:46.5]} 16. Be2 {[%clk 0:00:57.4]} 16... Re8 {[%clk
0:01:46.5]} 17. e5 {[%clk 0:00:55.1]} 17... Bf5 {[%clk 0:01:45.4]} 18. Nd2
{[%clk 0:00:52.5]} 18... h5 {[%clk 0:01:41.1]} 19. O-O {[%clk 0:00:49.6]} 19...
b5 {[%clk 0:01:27.4]} 20. g3 {[%clk 0:00:29.3]} 20... Nb7 {[%clk 0:01:02.5]} 21.
Bf3 {[%clk 0:00:29.8]} 21... Qd7 {[%clk 0:01:01.2]} 22. Ne4 {[%clk 0:00:29.7]}
22... Red8 {[%clk 0:00:51.2]} 23. Nc5 {[%clk 0:00:25.5]} 23... Nxc5 {[%clk
0:00:51.9]} 24. Bxc5 {[%clk 0:00:27.4]} 24... Bg4 {[%clk 0:00:50.8]} 25. Bxg4
{[%clk 0:00:24.9]} 25... Qxg4 {[%clk 0:00:45]} 26. Qxg4 {[%clk 0:00:21.9]} 26...
hxg4 {[%clk 0:00:46.9]} 27. Bxe7 {[%clk 0:00:22.7]} 27... Rd7 {[%clk 0:00:48]}
28. Bc5 {[%clk 0:00:23.4]} 28... Bf8 {[%clk 0:00:42.4]} 29. Bxf8 {[%clk
0:00:22.1]} 29... Kxf8 {[%clk 0:00:44.3]} 30. axb5 {[%clk 0:00:19.5]} 30... cxb5
{[%clk 0:00:43.6]} 31. Rfa1 {[%clk 0:00:19.6]} 31... Rda7 {[%clk 0:00:42.2]} 32.
Ra5 {[%clk 0:00:20.6]} 32... Ke7 {[%clk 0:00:41.8]} 33. Kf1 {[%clk 0:00:22.1]}
33... Ke6 {[%clk 0:00:42.6]} 34. Ke2 {[%clk 0:00:23.3]} 34... Kd5 {[%clk
0:00:43.9]} 35. Ke3 {[%clk 0:00:24.6]} 35... Ke6 {[%clk 0:00:31.7]} 36. Ke4
{[%clk 0:00:25]} 36... f5+ {[%clk 0:00:24.2]} 37. exf6 {[%clk 0:00:24.6]} 37...
Kxf6 {[%clk 0:00:25.4]} 38. Kf4 {[%clk 0:00:25.9]} 38... Ke6 {[%clk 0:00:23.8]}
39. Kxg4 {[%clk 0:00:27.1]} 39... Kd5 {[%clk 0:00:25.3]} 40. f3 {[%clk 0:00:27]}
40... Kc6 {[%clk 0:00:21.9]} 41. Kg5 {[%clk 0:00:26.1]} 41... Kb6 {[%clk
0:00:22.9]} 42. R5a2 {[%clk 0:00:26.4]} 42... Rf8 {[%clk 0:00:21.6]} 43. f4
{[%clk 0:00:26]} 43... Rg8 {[%clk 0:00:20]} 44. Re1 {[%clk 0:00:26.4]} 44... Rc8
{[%clk 0:00:15.9]} 45. Re6+ {[%clk 0:00:26.9]} 45... Rc6 {[%clk 0:00:17.5]} 46.
d5 {[%clk 0:00:24.9]} 46... Rxe6 {[%clk 0:00:15.8]} 47. dxe6 {[%clk 0:00:26.8]}
47... b4 {[%clk 0:00:15.2]} 48. cxb4 {[%clk 0:00:26.1]} 48... a5 {[%clk
0:00:16.2]} 49. bxa5+ {[%clk 0:00:26.5]} 49... Rxa5+ {[%clk 0:00:17.6]} 50. Rxa5
{[%clk 0:00:25.8]} 50... Kxa5 {[%clk 0:00:17.9]} 51. e7 {[%clk 0:00:27.7]} 51...
c3 {[%clk 0:00:19.4]} 52. e8=Q {[%clk 0:00:29.2]} 1